bitfinex/quotes_ETHUSD_20241120
["timestamp","ask_amount","ask_price","bid_price","bid_amount"]
[1732062039643,3.30147715,3104.7,3103.1,0.7993]
[1732062040049,3.0,3104.6,3103.1,0.7993]
[1732062040246,0.08054625,3104.5,3103.1,0.7993]
[1732062040733,0.08054538,3104.7,3103.2,0.87922396]
[1732062040940,0.08054112,3104.9,3103.2,0.87922396]
[1732062041142,0.08054112,3104.9,3103.2,0.7993]
[1732062041778,0.08054112,3104.9,3103.3,1.20047793]
[1732062041949,0.08053413,3105.1,3103.5,0.7993]
[1732062042584,3.08053413,3105.1,3103.5,0.7993]
[1732062045988,0.08053413,3105.1,3103.5,0.7993]
[1732062046159,0.08053429,3105.0,3103.5,0.7993]
[1732062046471,3.08053429,3105.0,3103.5,0.7993]
[1732062046758,0.08053429,3105.0,3103.5,0.7993]
[1732062047081,0.0805347,3104.9,3103.5,0.7993]
[1732062047264,0.55,3105.2,3103.5,0.7993]
[1732062047590,0.0805343,3105.1,3103.5,0.7993]
[1732062051176,0.033,3105.8,3103.7,0.8222]
[1732062051395,0.08052137,3105.7,3103.9,0.8222]
[1732062051600,0.0805179,3105.9,3104.1,0.01]
[1732062051775,0.0805179,3105.9,3104.2,0.8222]
[1732062051997,0.0805179,3105.9,3104.2,0.90187814]
[1732062052306,0.0805179,3105.9,3104.4,0.8222]
[1732062052481,0.0805179,3105.9,3104.2,0.07967814]
[1732062052482,0.0805179,3105.9,3104.5,0.8222]
[1732062052661,0.11357826,3106.4,3104.5,0.8222]
[1732062052662,3.29977954,3106.3,3104.5,0.8222]
[1732062052867,3.29977954,3106.3,3104.7,0.8222]
[1732062052868,3.0,3106.2,3104.7,0.8222]
[1732062053167,0.11357826,3106.4,3104.7,0.8222]
[1732062053168,0.08050559,3106.1,3104.7,0.8222]
[1732062053506,0.08050559,3106.1,3104.9,0.8222]
[1732062054294,0.0805031,3106.3,3104.9,0.8222]
[1732062054495,3.2997731,3106.3,3104.9,0.8222]
[1732062054817,0.0805031,3106.3,3104.9,0.8222]
[1732062056220,0.583,3106.2,3104.9,0.8222]
[1732062056403,3.0,3105.8,3104.9,0.8222]
[1732062056710,0.08051661,3105.7,3104.9,0.8222]
[1732062057129,3.0,3105.5,3104.9,0.8222]
[1732062057431,0.08052055,3105.4,3104.9,0.8222]
[1732062060032,3.0,3105.3,3104.9,0.8222]
[1732062061126,6.22031,3105.3,3104.9,0.8222]
[1732062061291,3.0,3105.1,3103.5,0.8222]
[1732062061491,3.30122191,3105.0,3103.5,0.8222]
[1732062061691,3.30122191,3105.0,3103.7,0.8222]
[1732062062132,0.08053191,3105.0,3103.9,0.8222]
[1732062062492,0.08053762,3104.9,3104.1,0.8222]
[1732062063231,0.08053762,3104.9,3104.2,0.90186019]
[1732062063452,0.08053676,3105.1,3104.2,0.8222]
[1732062065545,3.30110676,3105.1,3104.2,0.8222]
[1732062065731,3.0,3105.0,3104.2,0.8222]
[1732062065898,0.08053558,3104.9,3104.2,0.8222]
[1732062066633,3.08053558,3104.9,3104.2,0.8222]
[1732062066861,6.30125558,3104.9,3104.2,0.8222]
[1732062067034,3.08053558,3104.9,3104.2,0.8222]
[1732062067396,6.30124558,3104.9,3104.2,0.8222]
[1732062067610,3.08053558,3104.9,3104.2,0.8222]
[1732062067943,0.08053558,3104.9,3104.2,0.8222]
[1732062068147,0.08053683,3104.8,3104.2,0.8222]
[1732062069344,0.08053694,3104.7,3104.2,0.8222]
[1732062070205,3.0,3104.5,3104.2,0.8222]
[1732062070408,0.08054379,3104.4,3104.2,0.8222]
[1732062071107,3.08054366,3104.5,3104.2,0.8222]
[1732062071318,6.22119,3104.5,3102.7,0.8329]
[1732062071517,0.08054514,3104.4,3102.7,0.8329]
[1732062071728,0.08054514,3104.4,3102.9,0.8329]
[1732062072358,0.08054514,3104.4,3102.6,3.0]
[1732062072359,0.08054514,3104.4,3103.1,0.8329]
[1732062072505,0.08055208,3104.3,3103.0,0.07968488]
[1732062072845,0.08055208,3104.3,3102.6,3.3212]
[1732062072846,0.08055208,3104.7,3103.1,0.07968488]
[1732062073048,0.08055208,3104.7,3102.7,0.3212]
[1732062073049,0.08055208,3104.7,3103.2,0.8329]
[1732062073338,3.08055208,3104.7,3103.2,0.91266118]
[1732062073947,6.30154208,3104.7,3103.2,0.91266118]
[1732062074242,3.0,3104.5,3103.2,0.91266118]
[1732062074448,0.08054977,3104.4,3103.2,0.91266118]
[1732062075323,3.22145,3104.2,3103.2,0.91266118]
[1732062075673,0.08055549,3104.1,3103.2,0.91266118]
[1732062076845,0.0805555,3104.0,3103.2,0.91266118]
[1732062078045,3.3352455,3104.0,3103.2,0.91266118]
[1732062078250,6.22185,3103.9,3103.2,0.91266118]
[1732062078547,3.30249477,3103.8,3103.2,0.8329]
[1732062078841,3.22199,3103.7,3103.2,0.8329]
[1732062079155,0.033,3103.5,3102.9,0.8329]
[1732062079356,3.08057296,3103.4,3102.9,0.8329]
[1732062081564,0.08057296,3103.4,3102.0,0.8329]
[1732062081766,3.033,3102.9,3102.1,0.07992397]
[1732062082065,3.08059357,3102.8,3102.0,0.8329]
[1732062082270,6.30352357,3102.8,3102.0,0.8329]
[1732062082442,3.0,3102.6,3102.0,0.8329]
[1732062082771,0.08059684,3102.5,3102.0,0.8329]
[1732062083663,0.55,3102.6,3102.0,0.8329]
[1732062083878,0.08059774,3102.5,3102.0,0.8329]
[1732062084633,0.08059865,3102.8,3102.0,0.8329]
[1732062086444,0.55,3102.7,3102.0,0.8329]
[1732062086658,0.08059572,3102.6,3102.0,0.8329]
[1732062087430,0.55,3102.8,3102.0,0.8329]
[1732062088284,0.63058858,3103.1,3102.0,0.8329]
[1732062089958,0.55,3102.9,3102.0,0.8329]
[1732062090136,0.08059704,3102.8,3102.0,0.8329]
[1732062090334,0.55,3102.7,3102.0,0.8329]
[1732062090866,0.55,3103.0,3102.0,0.8329]
[1732062091085,0.55,3102.8,3102.0,0.8329]
[1732062092385,0.55,3103.1,3102.0,0.8329]
[1732062092532,0.55,3103.1,3102.1,0.8308]
[1732062092533,0.55,3102.9,3102.1,0.8308]
[1732062092957,0.08059058,3102.8,3102.1,0.8308]
[1732062095847,0.08059058,3102.8,3102.2,0.08010481]
[1732062096048,0.08059058,3102.8,3102.1,0.8308]
[1732062096773,0.11359057,3103.2,3102.1,0.8308]
[1732062096985,3.55,3103.1,3102.1,0.8308]
[1732062097282,0.55,3102.8,3101.4,0.8308]
[1732062097448,0.08060273,3102.7,3101.4,0.8308]
[1732062097884,0.08060273,3102.7,3101.6,0.8308]
[1732062098272,0.55,3102.6,3101.6,0.8308]
[1732062098602,0.583,3102.4,3101.6,0.8308]
[1732062098769,0.08060726,3102.3,3101.6,0.8308]
[1732062102208,0.583,3102.4,3101.6,0.8308]
[1732062102209,0.63060727,3102.4,3101.6,0.8308]
[1732062106179,3.0,3101.3,3100.7,0.143085]
[1732062106420,0.55,3101.0,3100.7,0.143085]
[1732062106718,0.08064161,3100.9,3100.7,0.143085]
[1732062107882,0.55,3101.3,3100.7,0.143085]
[1732062108081,0.08063648,3101.2,3100.8,0.7581]
[1732062109333,0.08063648,3101.2,3100.7,0.143085]
[1732062110396,0.29897916,3101.1,3100.7,0.143085]
[1732062110728,0.37961521,3101.0,3100.7,0.143085]
[1732062110890,0.29897916,3100.9,3100.7,0.143085]
[1732062111097,0.29897916,3100.8,3100.7,0.143085]
[1732062112306,0.08063603,3101.0,3100.7,0.143085]
[1732062112881,0.08063596,3101.2,3100.8,0.7581]
[1732062113904,0.08063092,3101.3,3100.8,0.7581]
[1732062114089,0.08063092,3101.4,3100.8,0.7581]
[1732062114289,0.08062631,3101.8,3100.8,0.7581]
[1732062115989,0.11361817,3102.2,3100.8,0.7581]
[1732062116812,0.11361817,3102.2,3101.0,0.801]
[1732062117131,0.55,3102.1,3101.0,0.801]
[1732062117432,0.08061817,3102.0,3101.1,0.3212]
[1732062117730,0.08061817,3102.0,3101.0,0.801]
[1732062120406,0.08061481,3102.4,3101.0,0.801]
[1732062120629,0.55,3102.3,3101.0,0.801]
[1732062120848,0.08061318,3102.2,3101.0,0.801]
[1732062121059,0.033,3102.0,3101.0,0.801]
[1732062121263,0.08061811,3102.0,3101.0,0.801]
[1732062122162,0.55,3102.2,3101.0,0.801]
[1732062122322,0.08061281,3102.1,3101.0,0.801]
[1732062122956,0.08061281,3102.1,3100.7,0.143085]
[1732062122957,0.08061281,3102.1,3101.2,0.801]
[1732062123255,0.08061281,3102.1,3101.3,0.87021593]
[1732062123640,0.08061281,3102.1,3101.3,0.801]
[1732062125268,0.08061281,3102.1,3101.4,0.90209569]
[1732062129469,0.0806099,3102.4,3101.4,0.90209569]
[1732062129906,0.0806099,3102.4,3101.4,0.8329]
[1732062130080,0.0806099,3102.4,3101.5,0.86994396]
[1732062130589,0.1135988,3102.9,3101.5,0.86994396]
[1732062130762,0.1135988,3102.9,3101.5,0.8008]
[1732062130763,0.0805988,3102.9,3101.5,0.8008]
[1732062130969,0.0805988,3102.9,3101.6,0.06911923]
[1732062131169,0.0805988,3102.9,3101.7,0.8008]
[1732062132180,0.0805988,3102.9,3101.9,0.8008]
[1732062132478,0.08059373,3103.2,3101.9,0.8008]
[1732062132804,0.11358283,3103.8,3102.1,1.122]
[1732062132995,0.11358283,3103.8,3102.2,1.122]
[1732062133179,0.08058283,3103.8,3102.3,0.8008]
[1732062133597,0.08058283,3103.8,3102.4,0.06908776]
[1732062133803,0.08058283,3103.8,3102.6,0.3212]
[1732062134007,0.11356302,3104.4,3102.7,0.8698327]
[1732062135410,0.55,3104.3,3102.7,0.8698327]
[1732062135576,0.08055819,3104.2,3102.7,0.8698327]
[1732062135776,0.11174845,3104.7,3102.7,0.8698327]
[1732062135777,0.08055812,3104.6,3102.7,0.8698327]
[1732062136078,0.08055812,3104.6,3101.9,3.3976421]
[1732062136079,0.08055812,3104.6,3102.9,1.122]
[1732062136422,0.08055812,3104.6,3102.4,0.01]
[1732062136423,0.08055812,3104.6,3103.1,0.8008]
[1732062137319,0.55,3104.5,3103.1,0.8008]
[1732062137617,0.55,3104.5,3103.2,0.06891703]
[1732062137772,0.55,3104.5,3103.3,0.8008]
[1732062137975,0.08055812,3104.6,3103.3,0.8008]
[1732062139632,3.0,3104.4,3103.3,0.8008]
[1732062139812,0.08055446,3104.3,3103.3,0.8008]
[1732062140984,0.55,3104.1,3103.3,0.8008]
[1732062141189,3.08056058,3104.0,3103.3,0.8008]
[1732062141587,3.0,3103.8,3103.3,0.8008]
[1732062141900,3.0,3103.6,3102.1,0.8008]
[1732062142118,0.08057572,3103.5,3102.1,0.8008]
[1732062142414,0.08057572,3103.5,3102.0,0.33976421]
[1732062142415,0.55,3103.4,3102.3,0.8008]
[1732062142584,0.08058192,3103.4,3102.3,0.8008]
[1732062142784,0.55,3103.9,3102.4,0.06875748]
[1732062143008,0.55,3103.7,3102.5,0.8008]
[1732062143209,0.0805736,3103.6,3102.5,0.8008]
[1732062145706,0.08057021,3103.9,3102.5,0.8008]
[1732062145990,3.0,3103.8,3102.7,0.7787]
[1732062146189,0.08057024,3103.7,3102.7,0.7787]
[1732062146585,3.0,3103.6,3102.7,0.7787]
[1732062146790,0.08057363,3103.5,3102.7,0.7787]
[1732062147826,0.08057358,3103.4,3102.7,0.7787]
[1732062148743,0.08057357,3103.7,3102.7,0.7787]
[1732062149654,0.08057357,3103.7,3102.9,0.7787]
[1732062149953,0.55,3103.9,3102.9,0.7787]
[1732062150120,0.08057134,3103.8,3103.1,0.7787]
[1732062150655,0.55,3103.9,3103.1,0.7787]
[1732062150822,0.63056872,3103.9,3103.1,0.7787]
[1732062151156,3.0,3103.8,3103.1,0.7787]
[1732062151329,0.08056929,3103.7,3103.1,0.7787]
[1732062151810,3.08056929,3103.7,3103.1,0.7787]
[1732062152746,0.08056929,3103.7,3103.1,0.7787]
[1732062152935,0.08056869,3103.6,3103.1,0.7787]
[1732062153856,0.08056831,3103.8,3103.1,0.7787]
[1732062154207,3.63056858,3103.9,3103.1,0.7787]
[1732062154607,0.63056858,3103.9,3103.1,0.7787]
[1732062155256,3.0,3103.6,3103.1,0.7787]
[1732062155482,0.08056992,3103.5,3103.1,0.7787]
[1732062156478,3.30253936,3103.7,3103.1,0.7787]
[1732062156635,3.0,3103.6,3103.1,0.7787]
[1732062157063,0.08056975,3103.5,3103.1,0.7787]
[1732062160297,0.55,3103.3,3101.9,0.7715]
[1732062160578,3.0,3103.0,3101.9,0.7715]
[1732062160777,0.08058857,3102.9,3102.1,0.7715]
[1732062162197,0.08058804,3102.8,3102.1,0.7715]
[1732062163184,0.08058804,3102.7,3102.1,0.7715]
[1732062164390,3.55,3103.0,3102.1,0.7715]
[1732062164543,0.0805914,3102.9,3102.1,0.7715]
[1732062166384,3.3033914,3102.9,3102.1,0.7715]
[1732062166584,3.0,3102.8,3102.1,0.7715]
[1732062166786,0.08059184,3102.7,3102.1,0.7715]
[1732062167375,6.30359184,3102.7,3102.1,0.7715]
[1732062167557,3.55,3102.5,3101.1,0.7715]
[1732062167745,0.08060421,3102.4,3101.1,0.7715]
[1732062168067,0.08060421,3102.4,3101.3,0.7715]
[1732062168443,3.55,3102.3,3101.3,0.7715]
[1732062168639,0.08061044,3102.2,3101.3,0.7715]
[1732062170762,0.08061063,3102.5,3101.3,0.7715]
[1732062170946,3.55,3102.3,3101.3,0.7715]
[1732062171284,0.08061059,3102.2,3101.3,0.7715]
[1732062172095,0.63061058,3102.3,3101.3,0.7715]
[1732062172602,0.08061058,3102.3,3101.3,0.7715]
[1732062174157,0.55,3102.1,3101.3,0.7715]
[1732062174346,0.08061436,3102.0,3101.3,0.7715]
[1732062176366,0.033,3102.2,3101.3,0.7715]
[1732062176568,3.25652,3102.2,3101.3,0.7715]
[1732062176792,0.08061025,3102.1,3101.3,0.7715]
[1732062180293,3.22391,3101.9,3100.8,0.7715]
[1732062180479,0.08062297,3101.8,3101.4,0.06915071]
[1732062180869,0.08062297,3101.8,3100.8,0.7715]
[1732062181661,0.08062293,3101.7,3100.8,0.7715]
[1732062182492,0.08062293,3101.7,3100.9,0.3212]
[1732062182698,0.08062223,3101.6,3100.8,0.7715]
[1732062183608,0.08062238,3101.5,3100.8,0.7715]
[1732062183903,0.0809353,3102.4,3100.8,0.7715]
[1732062183904,0.033,3102.3,3100.8,0.7715]
[1732062184206,0.0806118,3102.2,3100.8,0.7715]
[1732062184561,3.22395,3101.8,3100.8,0.7715]
[1732062184759,0.08062215,3101.7,3100.8,0.7715]
[1732062185774,0.08062206,3101.7,3100.8,0.7715]
[1732062185971,0.033,3101.5,3100.8,0.7715]
[1732062186204,0.11362404,3101.5,3100.7,0.143085]
[1732062186409,0.033,3101.2,3100.7,0.143085]
[1732062186601,0.11363506,3101.2,3100.7,0.143085]
[1732062187072,3.2247,3101.1,3100.7,0.143085]
[1732062187272,6.77497,3100.8,3100.7,0.143085]
[1732062187705,0.033,3100.9,3100.7,0.143085]
[1732062187875,0.11364509,3100.9,3100.7,0.143085]
[1732062188760,0.033,3100.9,3100.7,0.143085]
[1732062188990,0.11363946,3100.9,3100.7,0.143085]
[1732062190577,6.77497,3100.8,3100.7,0.143085]
[1732062190961,0.55,3100.8,3100.7,0.143085]
[1732062191859,0.63064481,3100.8,3100.7,0.143085]
[1732062197880,0.08064512,3100.9,3100.7,0.143085]
[1732062198109,0.033,3101.2,3100.7,0.143085]
[1732062198110,0.08063429,3101.2,3100.7,0.143085]
[1732062201311,0.55,3101.1,3100.7,0.143085]
[1732062201540,0.033,3101.0,3100.8,0.0670746]
[1732062201731,3.0,3101.3,3100.7,0.143085]
[1732062201732,0.08063995,3101.2,3100.7,0.143085]
[1732062201903,0.11363995,3101.2,3100.7,0.143085]
[1732062202832,0.583,3101.4,3100.8,0.7795]
[1732062203031,0.08062913,3101.3,3100.8,0.7795]
[1732062206404,3.0,3101.1,3100.7,0.143085]
[1732062206719,3.55,3100.8,3100.7,0.143085]
[1732062206918,6.80797,3100.8,3100.7,0.143085]
[1732062207948,6.88779687,3100.8,3100.7,0.143085]
[1732062215424,3.0,3100.1,3099.7,0.7915]
[1732062215627,3.08065816,3100.1,3099.7,0.7915]
[1732062215947,0.08065816,3100.1,3099.7,0.7915]
[1732062216760,0.08065726,3100.2,3099.7,0.7915]
[1732062218237,3.0,3100.1,3099.7,0.7915]
[1732062218435,0.08066235,3100.0,3099.7,0.7915]
[1732062218665,0.08066186,3100.1,3099.7,0.7915]
[1732062218870,3.08066186,3100.1,3099.7,0.7915]
[1732062219566,0.08066189,3100.3,3099.7,0.7915]
[1732062221059,3.0,3099.8,3098.8,0.7522]
[1732062221264,0.08067455,3099.7,3098.8,0.7522]
[1732062222372,3.0,3099.3,3098.8,0.7522]
[1732062222576,0.08068268,3099.2,3098.8,0.7522]
[1732062223345,0.08068268,3099.2,3097.6,0.7522]
[1732062224082,0.08068268,3099.2,3097.2,0.7522]
[1732062224083,0.55,3097.9,3097.2,0.7522]
[1732062224370,0.033,3098.0,3097.2,0.7522]
[1732062224371,0.08072886,3097.8,3097.2,0.7522]
[1732062224727,3.55,3098.2,3097.6,0.05433591]
[1732062224936,0.08071701,3098.1,3097.7,0.7522]
[1732062225179,0.55,3098.7,3097.7,0.7522]
[1732062225180,0.55,3098.5,3097.7,0.7522]
[1732062225480,0.55,3098.3,3097.7,0.7522]
[1732062226478,0.08071247,3098.3,3097.7,0.7522]
[1732062226777,0.08070629,3098.7,3097.7,0.7522]
[1732062227180,0.08070629,3098.7,3097.8,0.05433591]
[1732062227478,0.08070048,3099.0,3097.9,0.7567]
[1732062227632,0.08070048,3099.0,3097.9,0.81103591]
[1732062228053,0.29773303,3098.9,3097.9,0.7567]
[1732062228371,0.29773303,3098.9,3097.3,0.01]
[1732062228372,0.08069329,3098.8,3098.0,0.05433591]
[1732062228533,0.08069329,3098.8,3098.1,0.7567]
[1732062228733,6.30713329,3099.4,3098.1,0.81103591]
[1732062228933,0.29771092,3099.3,3098.1,0.7567]
[1732062229179,0.55,3099.1,3098.1,0.7567]
[1732062229332,0.08069329,3099.0,3098.1,0.7567]
[1732062229535,0.37840421,3099.0,3098.1,0.7567]
[1732062229740,0.08069329,3099.0,3098.1,0.7567]
[1732062230201,0.08069329,3099.0,3098.2,0.05433591]
[1732062230351,0.08069329,3099.0,3098.3,0.7567]
[1732062230550,0.033,3099.5,3098.3,0.7567]
[1732062230551,0.55,3099.4,3098.3,0.7567]
[1732062230751,0.55,3099.2,3098.3,0.7567]
[1732062230951,0.29759547,3099.1,3098.3,0.7567]
[1732062231655,0.08068949,3099.0,3098.3,0.7567]
[1732062232054,0.55,3099.3,3098.3,0.7567]
[1732062232255,0.37831299,3099.2,3098.3,0.7567]
[1732062232453,0.29762418,3099.1,3098.3,0.7567]
[1732062233203,0.6306888,3099.3,3098.3,0.7567]
[1732062233204,0.08068862,3099.0,3098.3,0.7567]
[1732062234188,0.08068547,3099.7,3098.3,0.7567]
[1732062234392,0.29780667,3099.6,3098.3,0.7567]
[1732062234588,0.0806757,3099.5,3098.3,0.7567]
[1732062235193,0.0806757,3099.5,3098.4,0.05435395]
[1732062235395,0.0806757,3099.5,3098.5,0.7793]
[1732062235618,0.11367494,3100.1,3098.5,0.83365395]
[1732062235818,0.29790534,3100.0,3098.5,0.83365395]
[1732062236133,0.11367494,3100.1,3098.5,0.83365395]
[1732062236134,0.37857281,3099.9,3098.5,0.83365395]
[1732062236333,0.37857281,3099.9,3098.5,0.7793]
[1732062236334,0.29790534,3099.8,3098.5,0.7793]
[1732062236702,0.11366646,3100.4,3098.7,0.7793]
[1732062237038,0.55,3100.2,3098.7,0.7793]
[1732062237336,0.37873434,3100.1,3098.7,0.7793]
[1732062237542,0.29806697,3100.0,3098.7,0.7793]
[1732062237743,0.29806697,3099.9,3098.7,0.7793]
[1732062238042,0.08066737,3100.1,3098.7,0.7793]
[1732062238335,0.29810724,3100.0,3098.7,0.7793]
[1732062238544,0.29810724,3099.9,3098.7,0.7793]
[1732062238707,0.08066193,3100.4,3098.7,0.7893]
[1732062238911,0.29812486,3100.3,3098.8,0.83365395]
[1732062239111,0.3787848,3100.2,3098.8,0.83365395]
[1732062239309,0.29812486,3100.1,3098.8,0.83365395]
[1732062239507,0.08065681,3100.0,3098.8,0.83365395]
[1732062239712,3.22531,3100.5,3098.8,0.7793]
[1732062239923,3.37885742,3100.4,3098.8,0.7793]
[1732062240135,3.033,3100.1,3098.9,0.05435395]
[1732062240441,0.55,3099.9,3098.8,0.7793]
[1732062240641,0.37886942,3099.8,3098.8,0.7793]
[1732062240936,0.29819488,3099.7,3098.8,0.7793]
[1732062241114,0.08067449,3099.6,3098.8,0.7793]
[1732062243967,3.08067449,3099.6,3098.8,0.7793]
[1732062244115,0.033,3099.5,3098.8,0.7793]
[1732062244320,0.08067778,3099.4,3098.8,0.7793]
[1732062245184,0.0806775,3099.7,3098.8,0.7793]
[1732062246089,0.55,3099.5,3098.8,0.7793]
[1732062246249,0.0806809,3099.4,3098.8,0.7793]
[1732062246574,3.0806809,3099.4,3098.8,0.7793]
[1732062247440,3.77659,3099.3,3098.8,0.7793]
[1732062247670,3.08068206,3099.2,3098.8,0.7793]
[1732062247975,0.08068206,3099.2,3098.8,0.7793]
[1732062248483,0.08068205,3099.3,3098.8,0.7793]
[1732062249434,3.55,3099.5,3098.1,0.8078]
[1732062249747,0.11368316,3099.4,3098.1,0.8078]
[1732062249967,0.08068316,3099.4,3098.1,0.8078]
[1732062250475,0.08067918,3099.8,3098.3,0.8078]
[1732062250973,0.08067918,3099.8,3098.5,0.8078]
[1732062251276,3.22571,3100.1,3098.5,0.8078]
[1732062251449,0.08066861,3100.0,3098.5,0.8078]
[1732062251650,0.08066861,3100.0,3098.7,0.8078]
[1732062252050,3.08066861,3100.0,3098.7,0.8078]
[1732062252256,0.55,3099.8,3098.7,0.8078]
[1732062252489,0.55,3099.4,3098.7,0.8078]
[1732062252774,0.080684,3099.3,3098.7,0.8078]
[1732062253574,0.08068147,3099.5,3098.7,0.8078]
[1732062253944,3.0,3100.0,3098.7,0.8078]
[1732062253945,0.08067478,3099.9,3098.7,0.8078]
[1732062254977,0.08066365,3100.3,3098.7,0.8078]
[1732062255890,0.08066365,3100.3,3098.8,0.86235985]
[1732062256249,0.08066365,3100.3,3098.8,0.8078]
[1732062256685,0.08066365,3100.3,3098.8,0.8178]
[1732062256891,0.11365808,3100.7,3098.8,0.8178]
[1732062257047,0.11365808,3100.7,3099.0,0.8078]
[1732062257247,3.33873808,3100.7,3099.0,0.8078]
[1732062257546,3.33873808,3100.7,3099.2,0.8078]
[1732062257746,3.22518,3100.6,3099.2,0.8078]
[1732062257946,0.55,3100.4,3099.2,0.8078]
[1732062258185,0.08066027,3100.3,3099.2,0.8078]
[1732062259459,3.30624027,3100.3,3099.2,0.8078]
[1732062259670,3.0,3100.2,3099.2,0.8078]
[1732062259869,0.08066187,3100.1,3099.2,0.8078]
[1732062260292,6.77582,3100.0,3099.2,0.8078]
[1732062260464,0.08066789,3099.9,3099.2,0.8078]
[1732062261990,3.08066789,3099.9,3099.2,0.8078]
[1732062262652,6.30657789,3099.9,3099.2,0.8078]
[1732062263551,0.08066789,3099.9,3099.2,0.8078]
[1732062264188,3.0,3099.8,3099.2,0.8078]
[1732062264395,3.22645,3099.4,3097.8,0.7909]
[1732062264693,3.63068673,3099.3,3097.8,0.7909]
[1732062264896,3.63068673,3099.3,3097.5,0.143085]
[1732062264897,3.63068673,3099.3,3097.9,0.8435965]
[1732062265193,3.63068673,3099.3,3097.9,0.7909]
[1732062265649,3.22665,3099.2,3097.9,0.7909]
[1732062265851,3.08068942,3099.1,3097.9,0.7909]
[1732062266192,3.22684,3099.0,3097.9,0.7909]
[1732062266356,3.08069361,3098.9,3097.9,0.7909]
[1732062266551,0.55,3098.8,3097.9,0.7909]
[1732062266779,3.08069361,3098.7,3097.9,0.7909]
[1732062266977,0.55,3098.6,3097.9,0.7909]
[1732062267197,3.0807026,3098.5,3097.9,0.7909]
[1732062267540,0.0807026,3098.5,3097.9,0.7909]
[1732062267821,0.55,3098.4,3097.9,0.7909]
[1732062268017,0.08070611,3098.3,3098.0,0.05278502]
[1732062268233,0.08070611,3098.3,3097.9,0.7909]
[1732062268382,0.55,3098.4,3097.9,0.7909]
[1732062268588,0.63070611,3098.6,3097.9,0.7909]
[1732062268915,0.08070612,3098.5,3097.9,0.7909]
[1732062269702,0.0807048,3098.5,3097.9,0.7909]
[1732062270334,0.0807002,3098.8,3097.9,0.7909]
[1732062271251,3.30712372,3099.4,3098.1,0.7909]
[1732062271726,0.08069372,3099.4,3098.1,0.7909]
[1732062272214,0.55,3099.2,3098.1,0.7909]
[1732062272423,0.08069376,3099.1,3098.2,0.05097154]
[1732062272618,0.08069376,3099.1,3098.2,0.7909]
[1732062274438,3.0,3099.0,3098.3,0.05097154]
[1732062274587,0.0806927,3098.9,3098.2,0.7909]
[1732062274792,3.3076427,3098.9,3098.2,0.7909]
[1732062275030,3.3076427,3098.9,3097.5,0.143085]
[1732062275031,0.55,3098.7,3097.6,0.7909]
[1732062275352,3.0,3098.5,3097.6,0.7909]
[1732062275543,3.30798629,3098.6,3097.6,0.7909]
[1732062275544,0.08070583,3098.4,3097.6,0.7909]
[1732062277851,0.55,3098.4,3097.6,0.7909]
[1732062278148,0.08070893,3098.3,3097.6,0.7909]
[1732062278332,0.55,3098.6,3097.6,0.7909]
[1732062278642,3.0,3098.8,3097.6,0.7909]
[1732062278643,0.55,3098.4,3097.6,0.7909]
[1732062279206,0.08070894,3098.3,3097.6,0.7909]
[1732062280453,0.55,3098.4,3097.6,0.7909]
[1732062280669,0.08070915,3098.5,3097.6,0.7909]
[1732062280821,0.08070897,3098.6,3097.6,0.7909]
[1732062282767,0.55,3098.9,3097.6,0.7909]
[1732062283061,0.08069856,3098.8,3097.6,0.7909]
[1732062283226,0.08069856,3098.8,3097.8,0.8116]
[1732062283931,3.08069232,3099.3,3098.0,0.8116]
[1732062284243,0.55,3099.2,3098.0,0.8116]
[1732062284456,0.08069207,3099.1,3098.0,0.8116]
[1732062286371,3.08069207,3099.1,3098.0,0.8116]
[1732062287658,0.08069207,3099.1,3098.0,0.8116]
[1732062289441,0.55,3099.0,3098.0,0.8116]
[1732062289682,3.55,3098.6,3098.0,0.8116]
[1732062289881,0.55,3098.4,3098.0,0.8116]
[1732062290080,3.08070577,3098.3,3098.0,0.8116]
[1732062290374,3.08070577,3098.3,3097.5,0.143085]
[1732062290375,0.08070577,3098.3,3097.8,0.8116]
[1732062291750,0.08070645,3098.4,3097.8,0.8116]
[1732062292277,3.0,3098.3,3097.5,0.954685]
[1732062292482,0.08071035,3098.2,3097.5,0.954685]
[1732062293438,0.08071035,3098.1,3097.5,0.954685]
[1732062294738,3.08071035,3098.1,3097.5,0.954685]
[1732062294960,3.08071035,3098.1,3097.5,0.143085]
[1732062294961,3.22808,3097.9,3097.5,0.143085]
[1732062295152,6.7783,3097.6,3097.5,0.143085]
[1732062295453,0.55,3097.7,3097.5,0.143085]
[1732062295454,3.0,3097.7,3097.5,0.143085]
[1732062295768,0.08072777,3097.6,3097.5,0.143085]
[1732062296689,0.55,3097.7,3097.5,0.143085]
[1732062296855,0.08072663,3097.6,3097.5,0.143085]
[1732062297687,0.16201487,3097.9,3097.5,0.143085]
[1732062298181,0.08071885,3097.9,3097.5,0.143085]
[1732062298741,0.55,3097.9,3097.5,0.143085]
[1732062299677,0.08130453,3097.9,3097.5,0.143085]
[1732062299875,0.08071828,3098.0,3097.5,0.143085]
[1732062300283,0.08071627,3098.2,3097.5,0.143085]
[1732062301141,3.08071627,3098.2,3097.5,0.143085]
[1732062301671,3.0,3097.8,3097.5,0.143085]
[1732062301880,3.22799,3097.9,3097.5,0.143085]
[1732062301881,0.08072184,3097.7,3097.5,0.143085]
[1732062302047,0.11371954,3097.9,3097.5,0.143085]
[1732062302463,0.08071954,3097.9,3097.5,0.143085]
[1732062302674,0.63071965,3098.1,3097.5,0.143085]
[1732062302890,0.63071965,3098.1,3097.6,0.8116]
[1732062303044,0.55,3098.1,3097.6,0.8116]
[1732062304878,0.16076854,3098.2,3097.6,0.8116]
[1732062305102,3.22787,3098.1,3097.6,0.8116]
[1732062305311,3.08071721,3098.0,3097.5,0.143085]
[1732062305615,0.08071721,3098.0,3097.5,0.143085]